bitfinex/quotes_SOLUSD_20250318
["timestamp","ask_amount","ask_price","bid_price","bid_amount"]
[1742321460358,13.82366659,123.97,123.94,0.063]
[1742321460858,13.82366659,123.96,123.94,0.063]
[1742321461453,13.82366659,123.97,123.94,0.063]
[1742321462741,13.82366659,123.96,123.94,0.063]
[1742321463061,13.82366659,123.95,123.94,0.063]
[1742321464647,13.82366659,123.97,123.94,0.063]
[1742321465960,20.99366659,123.98,123.94,0.063]
[1742321466139,0.03,123.98,123.95,0.14216157]
[1742321466341,0.03,123.98,123.96,8.0671]
[1742321466746,13.85366659,123.98,123.96,8.0671]
[1742321467857,13.82366659,123.97,123.96,8.0671]
[1742321468167,13.82366659,123.97,123.95,8.0675]
[1742321468479,13.82366659,123.96,123.95,8.0675]
[1742321469174,13.82366659,123.96,123.94,0.063]
[1742321474042,13.82366659,123.95,123.94,0.063]
[1742321475849,13.82366659,123.96,123.94,0.063]
[1742321478246,13.85366659,123.98,123.94,0.20516157]
[1742321478451,0.03,123.98,123.94,14.02882816]
[1742321478658,13.85366659,123.98,123.94,0.20516157]
[1742321479173,0.03,123.98,123.94,14.02882816]
[1742321479358,0.03,123.98,123.95,28.2371]
[1742321480784,0.03,123.98,123.95,42.06076659]
[1742321480990,0.03,123.98,123.97,20.0]
[1742321481792,0.03,123.98,123.97,28.0664]
[1742321482465,13.85366659,123.98,123.97,28.0664]
[1742321482790,13.85366659,123.98,123.97,8.0664]
[1742321483889,13.85366659,123.98,123.95,20.1694]
[1742321484652,0.03,123.98,123.97,20.0]
[1742321485869,0.03,123.98,123.97,28.0664]
[1742321487885,213.5401,124.02,123.99,8.0651]
[1742321488095,0.0001,124.02,123.99,8.0651]
[1742321488259,0.0001,124.02,123.99,28.228]
[1742321488590,0.0001,124.02,123.99,42.05166659]
[1742321489360,13.82376659,124.02,123.99,28.228]
[1742321489974,13.82366659,124.01,123.99,8.0651]
[1742321491663,13.82376659,124.02,123.99,8.0651]
[1742321492059,13.82376659,124.02,123.99,28.228]
[1742321492993,13.82366659,124.01,123.99,8.0651]
[1742321493778,13.85366659,124.01,123.99,8.0651]
[1742321494061,13.82366659,124.0,123.98,8.0658]
[1742321494490,13.82366659,123.99,123.97,20.0]
[1742321494722,13.82366659,123.98,123.97,28.0661]
[1742321498698,20.96366659,124.0,123.97,28.0661]
[1742321499271,20.96366659,124.0,123.97,48.2322]
[1742321500364,13.82366659,123.99,123.97,48.2322]
[1742321503192,20.96366659,124.0,123.97,48.2322]
[1742321503768,0.03,124.01,123.98,13.96582816]
[1742321503982,0.03,124.01,124.0,20.0]
[1742321505693,0.03,124.01,124.0,28.0645]
[1742321508496,13.85366659,124.01,124.0,20.0]
[1742321508695,13.85366659,124.01,123.99,8.0648]
[1742321509891,13.85366659,124.01,123.98,20.1636]
[1742321510394,13.82366659,124.0,123.99,20.0]
[1742321512294,13.82366659,124.0,123.97,8.1294]
[1742321512498,13.82366659,123.98,123.97,8.1294]
[1742321512692,13.82366659,123.99,123.97,8.1294]
[1742321512998,22.53836659,124.01,123.97,28.2955]
[1742321513403,13.82366659,124.0,123.97,28.2955]
[1742321513868,20.99366659,124.01,123.97,28.2955]
[1742321514999,13.82366659,124.0,123.97,28.2955]
[1742321516409,13.82366659,124.0,123.97,20.2291]
[1742321517100,7.17,124.01,123.97,20.2291]
[1742321517475,20.99366659,124.01,123.97,20.2291]
[1742321518772,20.99366659,124.01,123.97,28.2955]
[1742321519484,13.82366659,124.0,123.97,28.2955]
[1742321520412,13.82366659,123.99,123.97,8.1294]
[1742321521111,13.82366659,123.98,123.97,0.063]
[1742321525697,1.5281,123.96,123.94,0.063]
[1742321525896,20.96366659,123.95,123.94,0.063]
[1742321526690,13.82366659,123.96,123.94,0.063]
[1742321526900,95.1188,123.99,123.94,0.063]
[1742321527090,13.82366659,123.97,123.94,0.063]
[1742321527807,13.82366659,123.97,123.95,20.0]
[1742321528919,13.82366659,123.98,123.96,8.0671]
[1742321529799,20.96366659,123.99,123.96,28.2348]
[1742321530000,0.03,123.98,123.96,28.2348]
[1742321532389,21.61758847,123.98,123.96,28.2348]
[1742321533615,21.58758847,123.97,123.95,8.1304]
[1742321533815,21.58758847,123.96,123.95,0.063]
[1742321536923,18.64964886,123.97,123.95,0.063]
[1742321537087,21.58758847,123.96,123.95,0.063]
[1742321537525,0.03,123.98,123.95,0.063]
[1742321537686,0.03,123.98,123.96,49.65468847]
[1742321538096,21.61758847,124.01,123.97,0.14216157]
[1742321539819,21.61758847,124.01,123.98,28.2303]
[1742321540430,0.03,124.01,123.98,28.2303]
[1742321541302,21.61758847,124.01,123.98,28.2303]
[1742321541819,21.58758847,124.0,123.98,28.2303]
[1742321542129,21.61758847,124.01,123.98,28.2303]
[1742321542330,21.58758847,123.99,123.98,28.2303]
[1742321542632,21.58758847,124.0,123.98,28.2303]
[1742321543429,0.03,124.01,123.98,28.2303]
[1742321544032,21.61758847,124.01,123.98,28.2303]
[1742321544225,0.03,124.01,123.98,28.2303]
[1742321544428,0.0001,124.02,124.0,20.0]
[1742321544743,0.0001,124.02,124.01,20.0]
[1742321546315,0.0001,124.02,124.01,28.20596157]
[1742321546521,0.0001,124.02,124.01,49.79355004]
[1742321546828,0.0001,124.03,124.01,49.79355004]
[1742321547000,0.0001,124.03,124.02,0.14216157]
[1742321547198,0.0001,124.03,124.02,21.72975004]
[1742321547403,0.0001,124.03,124.02,21.87191161]
[1742321548425,0.0001,124.03,124.02,29.93511161]
[1742321548931,0.0001,124.03,124.02,8.34752314]
[1742321549815,0.0001,124.03,124.02,29.93511161]
[1742321550015,0.0001,124.03,124.02,29.65078847]
[1742321550234,0.0001,124.03,124.02,8.20536157]
[1742321552231,0.0001,124.03,124.02,29.79295004]
[1742321552535,0.0001,124.03,124.02,29.93511161]
[1742321552734,0.0001,124.03,124.02,29.79295004]
[1742321553033,0.0001,124.03,124.02,171.26898361]
[1742321555328,0.0001,124.03,124.02,171.33198361]
[1742321558016,0.03,124.08,124.06,0.14216157]
[1742321558218,0.03,124.08,124.06,21.72975004]
[1742321558219,0.0001,124.08,124.06,21.72975004]
[1742321559340,0.0001,124.08,124.07,8.20206157]
[1742321559928,0.0001,124.08,124.07,29.78965004]
[1742321560617,0.0001,124.08,124.07,29.93181161]
[1742321560818,0.0001,124.11,124.1,20.0]
[1742321561317,0.0001,124.11,124.1,28.20016157]
[1742321561729,0.0001,124.11,124.1,28.058]
[1742321562332,0.0001,124.11,124.1,28.34232314]
[1742321562540,0.0001,124.11,124.1,28.20016157]
[1742321562934,0.0001,124.11,124.1,28.34232314]
[1742321563835,0.0001,124.11,124.1,28.20016157]
[1742321564030,0.0001,124.11,124.1,28.058]
[1742321564233,21.58768847,124.11,124.1,28.058]
[1742321565830,0.0001,124.11,124.1,28.058]
[1742321567729,21.58768847,124.11,124.1,28.058]
[1742321569349,0.0001,124.11,124.1,28.058]
[1742321570735,21.58768847,124.11,124.1,20.0]
[1742321571249,21.58768847,124.11,124.09,8.0583]
[1742321572649,21.58768847,124.11,124.07,28.2098]
[1742321577142,0.0001,124.11,124.07,49.79738847]
[1742321578835,21.58768847,124.11,124.07,28.2098]
[1742321581165,13.79037304,124.11,124.07,28.2098]
[1742321581559,0.0001,124.11,124.07,42.00007304]
[1742321582058,13.79037304,124.11,124.07,28.2098]
[1742321582772,13.79027304,124.1,124.09,20.0]
[1742321583568,13.79027304,124.1,124.09,28.0586]
[1742321584362,13.79027304,124.1,124.09,8.0586]
[1742321584573,13.79027304,124.1,124.08,8.059]
[1742321584865,13.79027304,124.09,124.08,8.059]
[1742321585567,15.35657304,124.09,124.06,0.063]
[1742321585767,13.79027304,124.07,124.06,0.063]
[1742321587345,19.98317304,124.07,124.06,0.063]
[1742321588679,27.12317304,124.07,124.06,0.063]
[1742321590564,1.5663,124.09,124.06,0.063]
[1742321590761,13.79027304,124.08,124.06,0.063]
[1742321591153,21.55686255,124.08,124.06,0.063]
[1742321592254,1.5663,124.09,124.06,0.063]
[1742321592474,21.55686255,124.08,124.06,0.063]
[1742321594477,21.55686255,124.07,124.06,0.063]
[1742321595262,40.20651141,124.07,124.06,0.063]
[1742321596745,1.5663,124.09,124.06,0.063]
[1742321597150,21.55686255,124.07,124.06,0.063]
[1742321597351,21.55686255,124.08,124.06,0.063]
[1742321597657,21.55686255,124.07,124.06,0.063]
[1742321597851,1.5663,124.09,124.06,0.063]
[1742321598046,21.55686255,124.07,124.06,0.063]
[1742321599187,40.20651141,124.07,124.06,0.063]
[1742321599360,40.49083455,124.07,124.06,0.063]
[1742321599551,47.13073455,124.07,124.06,0.063]
[1742321599757,55.19063455,124.07,124.06,0.063]
[1742321599960,0.28432314,124.06,124.02,8.1259]
[1742321600284,21.55686255,124.03,124.02,20.063]
[1742321601676,21.55686255,124.03,124.02,0.063]
[1742321603981,21.55686255,124.04,124.02,0.063]
[1742321604997,21.55686255,124.03,124.02,0.063]
[1742321605959,7.14,124.05,124.02,0.063]
[1742321606286,28.69686255,124.05,124.02,0.063]
[1742321606587,7.14,124.05,124.02,0.063]
[1742321606766,21.55686255,124.04,124.03,8.0625]
[1742321607575,21.55686255,124.06,124.03,28.2189]
[1742321608281,21.55686255,124.04,124.03,28.2189]
[1742321609185,21.55686255,124.04,124.03,20.0]
[1742321609566,21.55686255,124.04,124.02,0.063]
[1742321609879,21.55686255,124.03,124.02,0.063]
[1742321610296,6.6399,124.07,124.02,0.063]
[1742321610482,21.55686255,124.05,124.02,0.063]
[1742321610687,233.57594886,124.09,124.02,21.61986255]
[1742321610867,21.55686255,124.07,124.02,21.61986255]
[1742321611063,21.55686255,124.06,124.02,0.063]
[1742321611272,21.55686255,124.06,124.02,28.2842]
[1742321611481,21.55686255,124.05,124.02,28.2842]
[1742321617167,0.03,124.06,124.02,68.6002]
[1742321617787,0.03,124.06,124.02,90.15706255]
[1742321618465,0.03,124.06,124.02,68.6002]
[1742321619303,21.58686255,124.06,124.02,68.6002]
[1742321620481,0.03,124.06,124.05,20.0]
[1742321620977,213.36,124.09,124.04,21.55686255]
[1742321621197,13.7959919,124.08,124.06,20.0]
[1742321621575,227.1559919,124.09,124.06,20.0]
[1742321622406,227.1559919,124.09,124.07,8.0599]
[1742321623103,13.7959919,124.1,124.07,28.2098]
[1742321623997,0.0001,124.11,124.07,82.3055919]
[1742321624502,13.7960919,124.11,124.07,68.5096]
[1742321629005,0.0001,124.11,124.07,122.6053919]
[1742321629207,0.0001,124.11,124.1,20.0]
[1742321632706,0.0001,124.11,124.1,28.058]
[1742321635289,0.0001,124.11,124.1,28.20016157]
[1742321636496,0.0001,124.11,124.1,28.058]
[1742321636697,0.0001,124.11,124.1,28.20016157]
[1742321641517,0.0001,124.13,124.11,0.14216157]
[1742321642304,0.0001,124.13,124.12,8.0567]
[1742321642691,13.7960919,124.13,124.12,8.0567]
[1742321642909,13.7960919,124.13,124.08,122.3999]
[1742321642910,13.7960919,124.13,124.11,8.057]
[1742321643112,13.7959919,124.12,124.09,8.0586]
[1742321643416,13.7959919,124.1,124.09,8.0586]
[1742321644219,13.7959919,124.1,124.07,20.0]
[1742321644515,13.7959919,124.08,124.07,20.0]
[1742321645520,21.56080827,124.08,124.07,20.0]
[1742321646124,21.56080827,124.08,124.07,28.0599]
[1742321647312,21.56080827,124.08,124.06,8.1234]
[1742321647496,21.56080827,124.07,124.06,0.063]
[1742321647699,40.21045713,124.07,124.06,0.063]
[1742321647914,40.21045713,124.07,124.06,8.1236]
[1742321648123,40.21045713,124.07,124.06,0.063]
[1742321649826,40.49478027,124.07,124.06,0.063]
[1742321650223,21.56080827,124.07,124.06,0.063]
[1742321651900,7.14,124.08,124.06,0.063]
[1742321652108,21.56080827,124.09,124.06,0.063]
[1742321652310,214.8315,124.12,124.08,20.0]
[1742321652512,213.28,124.12,124.1,20.0]
[1742321652714,21.59090827,124.13,124.1,20.0]
[1742321653231,21.59090827,124.13,124.11,20.0]
[1742321653834,21.59090827,124.13,124.12,8.0567]
[1742321657728,0.0301,124.13,124.12,8.0567]
[1742321659229,28.73090827,124.13,124.11,8.057]
[1742321659418,21.56080827,124.12,124.09,8.0586]
[1742321659620,21.56080827,124.1,124.06,0.063]
[1742321659934,21.56080827,124.07,124.06,0.063]
[1742321661826,21.56080827,124.07,124.06,20.063]
[1742321662929,21.56080827,124.07,124.06,0.063]
[1742321664236,40.21045713,124.07,124.06,0.063]
[1742321667612,21.56080827,124.07,124.06,0.063]
[1742321675247,21.56080827,124.08,124.06,0.063]
[1742321675749,41.85105713,124.11,124.07,20.0]
[1742321675750,21.56080827,124.09,124.07,20.0]
[1742321676444,21.56080827,124.1,124.08,20.0]
[1742321676642,21.56080827,124.11,124.08,20.0]
[1742321676824,21.56080827,124.11,124.09,20.0]
[1742321677025,21.56080827,124.12,124.09,20.0]
[1742321677334,21.56080827,124.12,124.1,8.058]
[1742321680837,21.56080827,124.12,124.1,7.558]
[1742321682737,21.56080827,124.11,124.1,27.703]
[1742321683130,21.56080827,124.12,124.1,27.703]
[1742321683835,21.56080827,124.11,124.1,27.703]
[1742321684742,21.56080827,124.12,124.1,27.703]
[1742321688650,0.0301,124.13,124.1,27.703]
[1742321688841,21.56080827,124.12,124.1,27.703]
[1742321693263,13.78819797,124.12,124.1,27.703]
[1742321694268,13.78819797,124.11,124.1,27.703]
[1742321695452,13.78819797,124.12,124.1,27.703]
[1742321696235,13.78819797,124.11,124.1,27.703]
[1742321696459,13.78819797,124.11,124.1,7.558]
[1742321699869,13.78819797,124.11,124.09,20.0]
[1742321699870,68.94098985,124.11,124.09,8.0583]
[1742321700063,13.78819797,124.1,124.09,8.0583]
[1742321700258,13.78819797,124.1,124.07,8.0599]
[1742321700447,13.78819797,124.08,124.07,8.0599]
[1742321700862,13.78819797,124.08,124.06,8.1232]
[1742321701065,13.78819797,124.07,124.06,8.1232]
[1742321701769,13.78819797,124.07,124.06,0.063]
[1742321701959,18.64964886,124.1,124.06,20.063]
[1742321702167,13.78819797,124.07,124.06,20.063]
[1742321703080,13.78819797,124.07,124.06,0.063]
[1742321703682,13.78819797,124.07,124.06,28.1236]
[1742321704067,13.78819797,124.07,124.06,0.063]
[1742321704567,33.98904683,124.07,124.06,0.063]
[1742321704771,47.16414683,124.07,124.06,0.063]
[1742321704954,47.44846997,124.07,124.06,0.063]
[1742321705156,55.23639083,124.07,124.06,0.063]
[1742321707357,54.95206769,124.07,124.06,0.063]
[1742321707654,0.28432314,124.05,124.02,0.063]
[1742321707858,21.57611883,124.03,124.02,0.063]
[1742321709888,21.57611883,124.03,124.02,8.1262]
[1742321710175,18.933972,124.06,124.02,28.2842]
[1742321710353,21.57611883,124.04,124.02,28.2842]
[1742321710550,18.64964886,124.06,124.02,28.2842]
[1742321710860,21.57611883,124.05,124.02,28.2842]
[1742321711063,21.57611883,124.04,124.02,28.2842]
[1742321712082,21.57611883,124.04,123.95,40.401]
[1742321712083,0.28432314,124.01,123.96,0.063]
[1742321712406,21.57611883,123.97,123.96,0.063]
[1742321712563,21.57611883,123.97,123.96,20.063]
[1742321713574,21.57611883,123.97,123.96,28.1301]
[1742321713984,7.12,123.99,123.96,28.1301]
[1742321714179,28.69611883,123.99,123.96,28.1301]
[1742321714482,21.57611883,124.0,123.96,28.1301]
[1742321714785,21.57611883,124.0,123.96,48.2978]
[1742321718276,21.57611883,123.98,123.96,48.2978]
[1742321718590,8.7594,124.02,123.96,28.1301]
[1742321718591,21.57611883,123.97,123.96,28.1301]
[1742321718892,21.57611883,123.97,123.96,0.063]
[1742321719091,21.57611883,123.97,123.96,8.1301]
[1742321719295,21.57611883,123.97,123.96,28.1301]
[1742321719675,21.57611883,123.98,123.96,48.2978]
[1742321719915,21.57611883,123.99,123.96,28.2978]
[1742321720197,7.14,124.01,123.98,20.0]
[1742321720393,7.14,124.01,123.99,8.0651]
[1742321720575,21.57611883,124.0,123.99,8.0651]
[1742321720767,21.57611883,124.01,123.99,28.228]
[1742321720968,21.57611883,124.03,123.99,28.228]
[1742321721378,21.57611883,124.02,123.99,28.228]
[1742321721781,47.36576769,124.04,123.99,28.228]
[1742321721984,21.57611883,124.01,123.99,8.0651]
[1742321722203,47.36576769,124.04,123.99,8.0651]
[1742321722377,40.22576769,124.0,123.96,0.063]
[1742321722577,21.57611883,123.97,123.96,0.063]
[1742321725197,21.57611883,123.97,123.96,20.063]
[1742321726392,7.14,123.99,123.96,20.063]
[1742321726601,21.57611883,123.97,123.96,28.1301]
[1742321730304,21.57611883,123.97,123.96,0.063]
[1742321730602,43.15223766,123.97,123.96,0.063]
[1742321731403,61.80188652,123.97,123.96,0.063]
[1742321733203,40.22576769,123.97,123.96,0.063]
[1742321733980,61.80188652,123.97,123.96,0.063]
[1742321734999,70.4369328,123.97,123.95,0.063]
[1742321735309,20.554272,123.95,123.93,0.063]
[1742321735477,47.36576769,123.94,123.93,0.063]
[1742321739726,0.14216157,123.93,123.91,0.063]
[1742321739902,47.93441397,123.94,123.91,0.063]
[1742321739903,40.22576769,123.92,123.91,0.063]
[1742321740303,40.51009083,123.92,123.91,0.063]
[1742321741124,0.14216157,123.91,123.89,0.063]
[1742321741308,62.3705328,123.92,123.89,0.063]
[1742321741309,68.96188652,123.9,123.89,0.063]
[1742321741922,47.38576769,123.9,123.89,0.063]
[1742321742114,28.73611883,123.9,123.89,0.063]
[1742321742318,0.28432314,123.92,123.89,0.063]
[1742321742319,18.64964886,123.92,123.89,0.063]
[1742321742495,21.57611883,123.91,123.89,0.063]
[1742321742701,21.57611883,123.91,123.89,20.063]
[1742321742902,21.57611883,123.92,123.9,20.0]
[1742321743422,21.57611883,123.92,123.9,28.071]
[1742321743719,21.57611883,123.92,123.9,48.2485]
[1742321743924,1.883e-05,123.92,123.9,48.2485]
[1742321744115,1.23464998,123.99,123.94,20.0]
[1742321744116,220.68,123.98,123.94,20.0]
[1742321744424,21.57611883,123.96,123.94,20.0]
[1742321744620,21.57611883,123.99,123.94,41.57611883]
[1742321745718,21.57611883,123.98,123.95,68.5759]
[1742321746101,32.35664886,124.02,123.95,28.2371]
[1742321746102,21.57611883,123.96,123.95,28.2371]
[1742321747429,21.57611883,123.96,123.95,8.0677]
[1742321748116,18.29749335,123.96,123.95,8.0677]
[1742321748313,21.57611883,123.96,123.95,8.0677]
[1742321748615,21.57611883,123.97,123.95,28.2371]
[1742321749205,34.5522381,123.97,123.95,28.2371]
[1742321750321,214.12864628,124.01,123.95,28.2371]
[1742321750322,213.56,124.01,123.95,68.5759]
[1742321750622,34.5522381,123.99,123.95,68.6059]
[1742321750803,34.5522381,123.99,123.95,75.8059]
[1742321751817,34.5522381,124.0,123.98,20.0]
[1742321752126,213.56,124.01,123.99,8.0651]
[1742321753327,34.5522381,124.0,123.99,8.0651]
[1742321754729,213.56,124.01,123.99,8.0651]
[1742321754918,34.5522381,124.01,123.99,28.228]
[1742321755640,34.5822381,124.02,123.99,28.228]
[1742321756236,34.5522381,124.01,123.99,28.228]
[1742321758235,34.5822381,124.02,123.99,28.228]
[1742321759053,34.5522381,124.01,123.99,28.228]
[1742321762430,34.5822381,124.02,123.99,28.228]
[1742321762632,0.03,124.02,124.01,20.0]
[1742321763444,0.03,124.02,124.01,28.0638]
[1742321763823,34.5822381,124.02,124.01,28.0638]
[1742321764554,34.5822381,124.02,124.0,8.0642]
[1742321764836,34.5522381,124.01,123.97,20.1657]
[1742321765139,34.5822381,124.02,123.99,20.0]
[1742321765336,34.5822381,124.02,124.0,20.0]
[1742321765538,0.03,124.02,124.01,8.0638]
[1742321767437,0.03,124.02,124.01,20.0]
[1742321768830,0.0001,124.02,124.01,0.14216157]
[1742321769018,0.0001,124.02,124.01,54.69439967]
[1742321769209,0.0001,124.02,124.01,41.70786804]
[1742321769413,0.0001,124.02,124.01,20.14216157]
[1742321769712,0.0001,124.02,124.01,28.34812314]
[1742321769914,0.0001,124.02,124.01,49.91382961]
[1742321770115,0.0001,124.02,124.01,28.34812314]
[1742321771613,0.0001,124.02,124.01,70.49050161]
[1742321772035,0.0001,124.02,124.01,71.69946564]
[1742321772336,21.56570647,124.08,124.05,20.0]
[1742321772542,0.063,124.09,124.07,20.0]
[1742321772833,21.56570647,124.08,124.01,110.64686157]
[1742321773039,27.46234886,124.08,124.04,20.0]
[1742321773353,21.56570647,124.05,124.01,28.36556157]
[1742321773633,21.56570647,124.03,124.01,28.36556157]
[1742321773814,21.56570647,124.04,124.03,20.0]
[1742321775721,27.46234886,124.08,124.03,28.0625]
[1742321775722,21.56570647,124.05,124.03,28.0625]
[1742321777545,21.56570647,124.06,124.03,48.2189]
[1742321777863,21.56570647,124.05,124.03,48.2189]
[1742321778459,21.56570647,124.06,124.03,48.2189]
[1742321780463,21.56570647,124.05,124.03,48.2189]
[1742321781466,21.56570647,124.04,124.03,8.0625]
[1742321781770,0.063,124.09,124.04,18.933972]
[1742321781942,0.063,124.09,124.08,20.0]
[1742321783540,0.063,124.09,124.08,28.0593]
[1742321784642,21.62870647,124.09,124.08,28.0593]
[1742321786142,0.063,124.09,124.08,28.0593]
[1742321787067,21.62870647,124.09,124.08,28.0593]
[1742321787772,0.063,124.09,124.08,28.0593]
[1742321787954,0.0001,124.09,124.08,28.0593]
[1742321791150,21.56580647,124.09,124.08,28.0593]
[1742321793357,0.0001,124.09,124.08,28.0593]
[1742321798368,0.0001,124.09,124.08,49.76716804]
[1742321799073,0.0001,124.12,124.08,110.21186804]
[1742321799249,0.0001,124.12,124.11,20.0]
[1742321799444,21.56580647,124.12,124.11,20.0]
[1742321799648,0.0001,124.12,124.11,20.0]
[1742321800767,0.0001,124.12,124.11,28.0573]
[1742321808468,32.43478141,124.12,124.11,8.0573]
[1742321808661,32.43478141,124.12,124.1,8.058]
[1742321808867,13.78503255,124.11,124.1,8.058]
[1742321809362,0.0001,124.12,124.1,8.058]
[1742321809678,13.78513255,124.12,124.1,8.058]
[1742321809885,13.78513255,124.12,124.09,20.1457]
[1742321810289,0.0001,124.12,124.09,20.1457]
[1742321810466,0.0001,124.12,124.11,20.0]
[1742321810965,13.78513255,124.12,124.11,20.0]
[1742321811883,13.78513255,124.12,124.11,8.0573]
[1742321812775,0.0001,124.12,124.11,8.0573]
[1742321813084,13.78513255,124.12,124.11,8.0573]
[1742321814791,13.78513255,124.12,124.09,20.2087]
[1742321815000,13.78503255,124.11,124.09,20.2087]
[1742321815293,13.78503255,124.1,124.09,20.2087]
[1742321815676,13.78503255,124.11,124.09,20.2087]
[1742321816191,0.0001,124.12,124.09,20.2087]
[1742321816364,13.78513255,124.12,124.09,20.2087]
[1742321817165,13.78503255,124.11,124.09,20.2087]
[1742321818794,13.78503255,124.11,124.09,0.063]
[1742321819094,13.78503255,124.1,124.09,0.063]
[1742321821391,15.37043255,124.11,124.09,0.063]
[1742321821588,13.78503255,124.11,124.09,0.063]
[1742321822110,13.78503255,124.1,124.09,0.063]
[1742321823192,32.43478141,124.12,124.09,0.063]
[1742321823398,13.78503255,124.11,124.09,0.063]
[1742321824598,13.78503255,124.1,124.09,0.063]
[1742321824774,13.78503255,124.11,124.09,0.063]
[1742321825908,13.78513255,124.12,124.09,0.063]
[1742321826277,0.0001,124.12,124.09,0.063]
[1742321826477,13.78513255,124.12,124.09,0.063]
[1742321828490,13.78503255,124.11,124.09,0.063]
[1742321829097,13.78503255,124.1,124.09,20.063]
[1742321829895,13.78503255,124.11,124.09,20.063]
[1742321830403,13.78513255,124.12,124.1,20.0]
[1742321831090,0.0001,124.12,124.11,8.0573]
[1742321831607,13.78513255,124.12,124.11,8.0573]
[1742321832906,13.78513255,124.12,124.1,8.058]
[1742321833114,0.0001,124.12,124.1,8.058]
[1742321833276,13.78513255,124.12,124.1,8.058]
[1742321833585,13.78503255,124.11,124.1,8.058]
[1742321835698,13.78513255,124.12,124.1,8.058]
[1742321837113,13.78503255,124.11,124.1,8.058]
[1742321837616,13.78513255,124.12,124.1,8.058]
[1742321837994,13.78503255,124.11,124.1,8.058]
[1742321838386,13.78513255,124.12,124.1,8.058]
[1742321838884,0.0001,124.12,124.1,8.058]
[1742321839820,13.78513255,124.12,124.1,8.058]
[1742321840500,13.78503255,124.11,124.1,8.058]
[1742321841409,0.0001,124.12,124.1,8.058]
[1742321841904,13.78513255,124.12,124.1,8.058]
[1742321843814,0.0001,124.12,124.1,8.058]
[1742321846595,13.78513255,124.12,124.1,8.058]
[1742321847716,13.78513255,124.12,124.1,8.121]
[1742321848083,12.28513255,124.12,124.1,8.121]
[1742321849696,0.0301,124.13,124.1,8.121]
[1742321849697,13.78503255,124.11,124.1,8.121]
[1742321850718,0.0301,124.13,124.1,8.121]
[1742321850899,13.78503255,124.11,124.1,8.121]
[1742321851197,13.78503255,124.12,124.1,8.121]
[1742321855118,0.0301,124.13,124.1,28.266]
[1742321855416,13.81513255,124.13,124.1,28.266]
[1742321856720,0.0301,124.13,124.1,28.266]
[1742321856912,13.81513255,124.13,124.1,28.266]
[1742321862907,0.0001,124.13,124.11,0.14216157]
[1742321863204,7.746,124.18,124.14,20.0]
[1742321863205,15.30653255,124.18,124.14,20.0]
[1742321863408,13.78503255,124.16,124.14,20.0]
[1742321864696,1.5215,124.18,124.14,20.0]
[1742321864697,13.78503255,124.17,124.14,20.0]
[1742321864897,13.78503255,124.18,124.15,8.0547]
[1742321865111,13.78503255,124.18,124.15,28.1916]
[1742321867025,13.78503255,124.17,124.15,28.1916]
[1742321867415,13.78503255,124.16,124.15,28.1916]
[1742321867727,13.78503255,124.16,124.15,8.0547]
[1742321868714,13.78503255,124.17,124.15,8.0547]
[1742321868926,13.78503255,124.18,124.15,28.1916]
[1742321870076,13.78503255,124.17,124.15,28.1916]
[1742321871827,13.78503255,124.18,124.15,28.1916]
[1742321872213,13.81503255,124.18,124.15,28.1916]
[1742321872943,0.03,124.18,124.15,28.1916]
[1742321873109,13.78503255,124.17,124.15,28.1916]
[1742321874013,13.78503255,124.17,124.15,8.0547]
[1742321874216,13.78503255,124.16,124.14,0.063]
[1742321874418,18.67964886,124.18,124.14,0.063]
[1742321874419,13.78503255,124.15,124.14,0.063]
[1742321879136,56.7967302,124.18,124.14,0.063]